lending/lending_fUSD_20250114
["ID","MTS","AMOUNT","RATE_DAILY","PERIOD"]
[348951695,1736889055859,-1622.18,0.00011641,2]
[348951696,1736889055868,-1177.2,0.00011641,2]
[348951697,1736889055878,-1390.08,0.00011641,2]
[348951698,1736889055888,-849.08,0.00011641,2]
[348951699,1736889055898,-500.0,0.00011641,2]
[348951700,1736889055908,-2184.92,0.00011641,2]
[348951701,1736889055917,-500.0,0.00011641,2]
[348951702,1736889055927,-500.0,0.00011641,2]
[348951703,1736889055937,-915.88,0.00011641,2]
[348951704,1736889055947,-887.61,0.00011641,2]
[348951705,1736889055957,-500.0,0.00011641,2]
[348951706,1736889055967,-644.34,0.00011641,2]
[348951707,1736889055976,-500.0,0.00011641,2]
[348951708,1736889055985,-608.71,0.00011641,2]
[348951709,1736889055995,-541.2,0.00011643,2]
[348951710,1736889056004,-1511.81,0.00011643,2]
[348951711,1736889056014,-709.29,0.00011643,2]
[348951712,1736889056024,-500.0,0.00011643,2]
[348951713,1736889056034,-500.0,0.00011643,2]
[348951714,1736889056043,-157.9438261,0.00011673,2]
[348951715,1736889056052,-2016.0,0.00011696,2]
[348951716,1736889056062,-1268.0,0.00011696,2]
[348951717,1736889056071,-638.196,0.00011696,2]
[348951718,1736889056081,-151.802,0.00011696,2]
[348951719,1736889056091,-589.369,0.00011696,2]
[348951720,1736889056100,-1861.0,0.00011696,2]
[348951721,1736889056110,-279.808328,0.00011721,2]
[348951722,1736889056119,-151.0,0.00011721,2]
[348951723,1736889056130,-500.0,0.00011721,2]
[348951724,1736889056140,-500.0,0.00011721,2]
[348951725,1736889056151,-542908.33428515,0.00011722,2]
[348951726,1736889056161,-500.0,0.00011773,2]
[348951727,1736889056171,-248.48607,0.00011777,2]
[348951728,1736889056181,-23787.57893562,0.00011777,2]
[348951729,1736889056190,-1044.60484362,0.00011777,2]
[348951730,1736889056200,-1600.0,0.0001178,2]
[348951731,1736889056210,-500.0,0.0001178,2]
[348951732,1736889056220,-4300.0,0.0001178,2]
[348951733,1736889056230,-500.0,0.00011835,2]
[348951734,1736889056240,-44097.0,0.00011836,2]
[348951735,1736889056250,-1000.0,0.00011845,2]
[348951736,1736889056260,-201.0281163,0.00011869,2]
[348951737,1736889056270,-500.0,0.00011876,2]
[348951738,1736889056279,-500.0,0.00011876,2]
[348951739,1736889056289,-500.0,0.00011876,2]
[348951740,1736889056299,-500.0,0.00011876,2]
[348951741,1736889056309,-616.28216568,0.00011876,2]
[348951742,1736889056319,-1097759.93279726,0.00011877,2]
[348951743,1736889056568,-59016.04218225,0.00011877,2]
[348951744,1736889056582,-6004.097172,0.00011877,2]
[348951745,1736889056593,-25559.44314519,0.00011877,2]
[348951746,1736889056605,-10146.31657366,0.00011877,2]
[348951747,1736889056618,-10005.01118049,0.00011877,2]
[348951748,1736889056641,-7395.95158605,0.00011877,2]
[348951749,1736889056825,-500.0,9.997e-05,2]
[348951750,1736889056834,-500.0,0.00010271,2]
[348951751,1736889056844,-500.0,0.00010812,2]
[348951752,1736889056854,-865.61,0.00010819,2]
[348951753,1736889056863,-1114.79,0.00010819,2]
[348951754,1736889056873,-1110.07822038,0.00010819,2]
[348951755,1736889056884,-564.52338895,0.00010819,2]
[348951756,1736889056896,-322.90175094,0.00010819,2]
[348951757,1736889056907,-468.59049998,0.00010819,2]
[348951758,1736889056925,-959.63613975,0.00010819,2]
[348951759,1736889056935,-500.0,0.00010999,2]
[348951760,1736889056944,-500.0,0.00011093,2]
[348951761,1736889056953,-865.61,0.00011093,2]
[348951762,1736889056963,-1114.79,0.00011093,2]
[348951763,1736889056972,-3425.73,0.00011093,2]
[348951764,1736889056981,-500.0,0.00011367,2]
[348951765,1736889056991,-134.23386025,0.00011367,2]
[348951766,1736889057002,-688.19239731,0.00011367,2]
[348951767,1736889057014,-43.18374244,0.00011367,2]
[348951768,1736889057024,-1114.79,0.00011367,2]
[348951769,1736889057035,-500.0,0.00011641,2]
[348951770,1736889057044,-26637.45030399,0.00011877,2]
[348951771,1736889057054,-151.0,0.00011877,2]
[348951772,1736889057064,-1000.0,0.000119,2]
[348951773,1736889057073,-187.84955475,0.000119,2]
[348951774,1736889057082,-500.0,0.00011909,2]
[348951775,1736889057092,-500.0,0.00011909,2]
[348951776,1736889057101,-638.87,0.00011909,2]
[348951777,1736889057110,-790.07,0.00011909,2]
[348951778,1736889057119,-735.53,0.00011909,2]
[348951779,1736889057129,-2063.18,0.00011909,2]
[348951780,1736889057139,-1285.72334122,0.00011909,2]
[348951781,1736889057150,-332.54659203,0.00011909,2]
[348951782,1736889057161,-2353.77167174,0.00011909,2]
[348951783,1736889057172,-357.59839501,0.00011909,2]
[348951784,1736889057181,-14.44817946,0.00011909,2]
[348951785,1736889057201,-647.05182054,0.00011909,2]
[348951786,1736889057211,-500.0,0.00011909,2]
[348951787,1736889057221,-1487.9,0.00011909,2]
[348951788,1736889057231,-1425.91,0.00011909,2]
[348951789,1736889057240,-606.11,0.00011909,2]
[348951790,1736889057251,-839.24,0.00011909,2]
[348951791,1736889057262,-1095.49,0.00011909,2]
[348951792,1736889057271,-500.0,0.00011909,2]
[348951793,1736889057281,-1000.0,0.00011909,2]
[348951794,1736889057290,-1628.9,0.00011909,2]
[348951795,1736889057299,-1628.9,0.00011909,2]
[348951796,1736889057310,-654.05391314,0.00011909,2]
[348951797,1736889057558,-394.73467223,0.00010999,2]
[348951798,1736889057573,-105.26532777,0.00010999,2]
[348951799,1736889057583,-338.57,0.00010999,2]
[348951800,1736889057593,-166.60511128,0.00011367,2]
[348951801,1736889057604,-2208.4000004,0.00011367,2]
[348951802,1736889057618,-1050.72488832,0.00011367,2]
[348951803,1736889057628,-118.27511168,0.00011641,2]
[348951804,1736889057641,-996.51488832,0.00011641,2]
[348951805,1736889057653,-865.61,0.00011641,2]
[348951806,1736889057662,-3425.73,0.00011641,2]
[348951807,1736889057672,-398.29608686,0.00011909,2]
[348951808,1736889057682,-500.0,0.0001191,2]
[348951809,1736889057691,-558.26,0.00011915,2]
[348951810,1736889057700,-500.0,0.00011915,2]
[348951811,1736889057710,-500.0,0.00011915,2]
[348951812,1736889057719,-874.13,0.00011915,2]
[348951813,1736889057729,-537.73,0.00011915,2]
[348951814,1736889057739,-573.18,0.00011915,2]
[348951815,1736889057749,-500.0,0.00011915,2]
[348951816,1736889057759,-960.98,0.00011915,2]
[348951817,1736889057768,-500.0,0.00011915,2]
[348951818,1736889057778,-500.0,0.00011915,2]
[348951819,1736889057787,-1585.52,0.00011915,2]
[348951820,1736889057796,-500.0,0.00011915,2]
[348951821,1736889057806,-500.0,0.00011915,2]
[348951822,1736889057816,-500.0,0.00011915,2]
[348951823,1736889057825,-500.0,0.00011915,2]
[348951824,1736889057835,-526.603787,0.00011915,2]
[348951825,1736889057844,-878.16,0.00011915,2]
[348951826,1736889057855,-500.0,0.00011915,2]
[348951827,1736889057864,-500.0,0.00011915,2]
[348951828,1736889057875,-663.982168,0.00011915,2]
[348951829,1736889057886,-500.0,0.00011915,2]
[348951830,1736889057896,-736.51,0.00011915,2]
[348951831,1736889057906,-500.0,0.00011915,2]
[348951832,1736889057916,-562.02,0.00011915,2]
[348951833,1736889057925,-500.0,0.00011915,2]
[348951834,1736889057980,-500.0,0.00011915,2]
[348951835,1736889057989,-654.425542,0.00011915,2]
[348951836,1736889057999,-1516.14,0.00011915,2]
[348951837,1736889058008,-500.0,0.00011915,2]
[348951838,1736889058017,-500.0,0.00011915,2]
[348951839,1736889058027,-589.3,0.00011915,2]
[348951840,1736889058037,-2415.41,0.00011915,2]
[348951841,1736889058046,-500.0,0.00011915,2]
[348951842,1736889058055,-792.69,0.00011915,2]
[348951843,1736889058065,-500.0,0.00011915,2]
[348951844,1736889058074,-609.48,0.00011915,2]
[348951845,1736889058083,-500.0,0.00011915,2]
[348951846,1736889058092,-756.05,0.00011915,2]
[348951847,1736889058102,-500.0,0.00011915,2]
[348951848,1736889058111,-500.0,0.00011915,2]
[348951849,1736889058119,-2019.75,0.00011915,2]
[348951850,1736889058129,-544.83,0.00011915,2]
[348951851,1736889058139,-500.0,0.00011915,2]
[348951852,1736889058148,-2544.68,0.00011915,2]
[348951853,1736889058159,-613.12,0.00011915,2]
[348951854,1736889058168,-548.35,0.00011915,2]
[348951855,1736889058179,-500.0,0.00011915,2]
[348951856,1736889058188,-500.0,0.00011915,2]
[348951857,1736889058199,-2143.33,0.00011915,2]
[348951858,1736889058209,-500.0,0.00011915,2]
[348951859,1736889058219,-500.0,0.00011915,2]
[348951860,1736889058228,-500.0,0.00011915,2]
[348951861,1736889058238,-1261.69,0.00011915,2]
[348951862,1736889058246,-500.0,0.00011915,2]
[348951863,1736889058256,-506.09,0.00011915,2]
[348951864,1736889058265,-500.0,0.00011915,2]
[348951865,1736889058275,-500.0,0.00011915,2]
[348951866,1736889058285,-500.0,0.00011915,2]
[348951867,1736889058295,-515.65,0.00011915,2]
[348951868,1736889058304,-500.0,0.00011915,2]
[348951869,1736889058314,-477.32,0.00011915,2]
[348951870,1736889058325,-2194.0,0.00011915,2]
[348951871,1736889058335,-683.79,0.00011915,2]
[348951872,1736889058345,-500.0,0.00011915,2]
[348951873,1736889058355,-500.0,0.00011915,2]
[348951874,1736889058365,-579.57,0.00011915,2]
[348951875,1736889058375,-500.0,0.00011915,2]
[348951876,1736889058384,-500.0,0.00011915,2]
[348951877,1736889058393,-320.08916101,0.00011915,2]
[348951878,1736889058407,-850.73435686,0.00011915,2]
[348951879,1736889058422,-634.93648213,0.00011915,2]
[348951880,1736889058433,-745.52,0.00011915,2]
[348951881,1736889058443,-637.03,0.00011915,2]
[348951882,1736889058453,-500.0,0.00011915,2]
[348951883,1736889058463,-444.24816013,0.00011915,2]
[348951884,1736889058475,-329.5424,0.00011915,2]
[348951885,1736889058508,-436.77,0.00011014,2]
[348951886,1736889058519,-599.69943987,0.00011915,2]
[348951887,1736889058529,-590.18,0.00011915,2]
[348951888,1736889058539,-961.15,0.00011915,2]
[348951889,1736889058549,-3899.66,0.00011915,2]
[348951890,1736889058558,-646.45,0.00011915,2]
[348951891,1736889058570,-520.28,0.00011915,2]
[348951892,1736889058579,-500.0,0.00011915,2]
[348951893,1736889058588,-500.0,0.00011915,2]
[348951894,1736889058597,-500.0,0.00011915,2]
[348951895,1736889058608,-871.0,0.00011915,2]
[348951896,1736889058619,-634.35,0.00011915,2]
[348951897,1736889058629,-718.77,0.00011915,2]
[348951898,1736889058639,-500.0,0.00011915,2]
[348951899,1736889058650,-822.36711465,0.00011915,2]
[348951900,1736889058826,-358.03288535,0.00011915,2]
[348951901,1736889058837,-500.0,0.00011915,2]
[348951902,1736889058847,-268.72,0.00011915,2]
[348951903,1736889058857,-529.69073032,0.00011915,2]
[348951904,1736889058866,-1778.9363863,0.00011915,2]
[348951905,1736889058878,-839.6199934,0.00011915,2]
[348951906,1736889058890,-201.2036203,0.00011915,2]
[348951907,1736889058900,-2084.39757067,0.00011915,2]
[348951908,1736889058913,-332.48242933,0.00011915,2]
[348951909,1736889058923,-1337.68,0.00011915,2]
[348951910,1736889058932,-902.28,0.00011915,2]
[348951911,1736889058942,-549.52,0.00011915,2]
[348951912,1736889058952,-500.0,0.00011915,2]
[348951913,1736889058961,-746.11,0.00011915,2]
[348951914,1736889058970,-1458.52,0.00011915,2]
[348951915,1736889058980,-1031.97,0.00011915,2]
[348951916,1736889058989,-500.0,0.00011915,2]
[348951917,1736889058999,-811.67,0.00011915,2]
[348951918,1736889059009,-791.8,0.00011915,2]
[348951919,1736889059018,-500.0,0.00011915,2]
[348951920,1736889059027,-1951.46,0.00011915,2]
[348951921,1736889059036,-666.04,0.00011915,2]
[348951922,1736889059045,-1450.52,0.00011915,2]
[348951923,1736889059054,-904.14,0.00011915,2]
[348951924,1736889059064,-500.0,0.00011915,2]
[348951925,1736889059073,-564.24,0.00011915,2]
[348951926,1736889059083,-1622.18,0.00011915,2]
[348951927,1736889059093,-1177.2,0.00011915,2]
[348951928,1736889059103,-1390.08,0.00011915,2]
[348951929,1736889059112,-849.08,0.00011915,2]
[348951930,1736889059122,-500.0,0.00011915,2]
[348951931,1736889059131,-2184.92,0.00011915,2]
[348951932,1736889059142,-500.0,0.00011915,2]
[348951933,1736889059151,-500.0,0.00011915,2]
[348951934,1736889059161,-915.88,0.00011915,2]
[348951935,1736889059171,-887.61,0.00011915,2]
[348951936,1736889059181,-500.0,0.00011915,2]
[348951937,1736889059191,-644.34,0.00011915,2]
[348951938,1736889059200,-500.0,0.00011915,2]
[348951939,1736889059210,-608.71,0.00011915,2]
[348951940,1736889059220,-500.0,0.00011915,2]
[348951941,1736889059230,-1114.79,0.00011915,2]
[348951942,1736889059240,-865.61,0.00011915,2]
[348951943,1736889059250,-3425.73,0.00011915,2]
[348951944,1736889059260,-541.2,0.00011917,2]
[348951945,1736889059270,-1511.81,0.00011917,2]
[348951946,1736889059280,-709.29,0.00011917,2]
[348951947,1736889059290,-500.0,0.00011917,2]
[348951948,1736889059299,-500.0,0.00011917,2]
[348951949,1736889059309,-1928.70295496,0.00011969,2]
[348951950,1736889059318,-372.0,0.00011974,2]
[348951951,1736889059327,-322.0,0.00011974,2]
[348951952,1736889059336,-64934.15381384,0.00012,2]
[348951953,1736889059358,-953.0,0.00012,2]
[348951954,1736889059376,-103799.80629438,0.00012,2]
[348951955,1736889059386,-4949.50377034,0.00012,2]
[348951956,1736889059395,-928.98671668,0.00012,2]
[348951957,1736889059405,-11511.75904721,0.00012,2]
[348951958,1736889319606,250.0,9.665e-05,2]
[348951959,1736889338582,620.31,9.742e-05,2]
[348951960,1736889445304,2022.15,0.0001961,120]
[348951961,1736889456729,250.0,9.535e-05,2]
[348951962,1736889615999,408.89,8.219e-05,2]
[348951963,1736889655094,-1689.54389704,9.897e-05,2]
[348951964,1736889655116,-4002.7916,9.897e-05,2]
[348951965,1736889655138,-1000.0,9.897e-05,2]
[348951966,1736889658635,173.40642769,9.897e-05,2]
[348951967,1736889741400,-250.0,9.922e-05,2]
[348951968,1736889741424,-547.98652386,9.973e-05,2]
[348951969,1736889741453,-547.98652386,9.976e-05,2]
[348951970,1736889741476,-547.98652386,9.977e-05,2]
[348951971,1736889741499,-547.98652386,9.992e-05,2]
[348951972,1736889741524,-547.98652386,9.992e-05,2]
[348951973,1736889741547,-150.0,9.996e-05,2]
[348951974,1736889741571,-500.0,9.997e-05,2]
[348951975,1736889741594,-1073.93,9.997e-05,2]
[348951976,1736889741617,-561.49,9.997e-05,2]
[348951977,1736889741639,-500.0,9.997e-05,2]
[348951978,1736889741663,-500.0,9.997e-05,2]
[348951979,1736889741685,-500.0,9.997e-05,2]
[348951980,1736889741708,-500.0,9.997e-05,2]
[348951981,1736889741729,-500.0,9.997e-05,2]
[348951982,1736889741752,-500.0,9.997e-05,2]
[348951983,1736889741777,-1430.66,9.997e-05,2]
[348951984,1736889741802,-500.0,9.997e-05,2]
[348951985,1736889741825,-500.0,9.997e-05,2]
[348951986,1736889741847,-500.0,9.997e-05,2]
[348951987,1736889741870,-500.0,9.997e-05,2]
[348951988,1736889741893,-500.0,9.997e-05,2]
[348951989,1736889741915,-500.0,9.997e-05,2]
[348951990,1736889741939,-500.0,9.997e-05,2]
[348951991,1736889741962,-500.0,9.997e-05,2]
[348951992,1736889741986,-500.0,9.997e-05,2]
[348951993,1736889742009,-500.0,9.997e-05,2]
[348951994,1736889742032,-500.0,9.997e-05,2]
[348951995,1736889742055,-500.0,9.997e-05,2]
[348951996,1736889742077,-1802.48,9.997e-05,2]
[348951997,1736889742101,-500.0,9.997e-05,2]
[348951998,1736889742124,-500.0,9.997e-05,2]
[348951999,1736889742148,-669.08,9.997e-05,2]
[348952000,1736889742169,-500.0,9.997e-05,2]
[348952001,1736889742192,-500.0,9.997e-05,2]
[348952002,1736889742216,-500.0,9.997e-05,2]
[348952003,1736889742241,-500.0,9.997e-05,2]
[348952004,1736889742264,-500.0,9.997e-05,2]
[348952005,1736889742287,-500.0,9.997e-05,2]
[348952006,1736889742309,-500.0,9.997e-05,2]
[348952007,1736889742332,-500.0,9.997e-05,2]
[348952008,1736889742355,-500.0,9.997e-05,2]
[348952009,1736889742382,-500.0,9.997e-05,2]
[348952010,1736889742405,-439.09633194,9.997e-05,2]
[348952011,1736889742429,-500.0,9.997e-05,2]
[348952012,1736889742452,-406.94117626,9.997e-05,2]
[348952013,1736889742477,-500.0,9.997e-05,2]
[348952014,1736889742503,-500.0,9.997e-05,2]
[348952015,1736889742528,-500.0,9.997e-05,2]
[348952016,1736889742553,-500.0,9.997e-05,2]
[348952017,1736889742577,-500.0,9.997e-05,2]
[348952018,1736889742601,-2283.82,9.997e-05,2]
[348952019,1736889742625,-500.0,9.997e-05,2]
[348952020,1736889742658,-500.0,9.997e-05,2]
[348952021,1736889742680,-500.0,9.997e-05,2]
[348952022,1736889742705,-500.0,9.997e-05,2]
[348952023,1736889742731,-500.0,9.997e-05,2]
[348952024,1736889742754,-500.0,9.997e-05,2]
[348952025,1736889742780,-500.0,9.997e-05,2]
[348952026,1736889742805,-500.0,9.997e-05,2]
[348952027,1736889742829,-500.0,9.997e-05,2]
[348952028,1736889742852,-500.0,9.997e-05,2]
[348952029,1736889742876,-500.0,9.997e-05,2]
[348952030,1736889742899,-500.0,9.997e-05,2]
[348952031,1736889742922,-893.7,9.997e-05,2]
[348952032,1736889742945,-500.0,9.997e-05,2]
[348952033,1736889742968,-500.0,9.997e-05,2]
[348952034,1736889742992,-500.0,9.997e-05,2]
[348952035,1736889743015,-500.0,9.997e-05,2]
[348952036,1736889743043,-743.19,9.997e-05,2]
[348952037,1736889743066,-500.0,9.997e-05,2]
[348952038,1736889743090,-500.0,9.997e-05,2]
[348952039,1736889743114,-500.0,9.997e-05,2]
[348952040,1736889743139,-500.0,9.997e-05,2]
[348952041,1736889743162,-500.0,9.997e-05,2]
[348952042,1736889743184,-500.0,9.997e-05,2]
[348952043,1736889743206,-500.0,9.997e-05,2]
[348952044,1736889743229,-500.0,9.997e-05,2]
[348952045,1736889743252,-500.0,9.997e-05,2]
[348952046,1736889743275,-500.0,9.997e-05,2]
[348952047,1736889743298,-500.0,9.997e-05,2]
[348952048,1736889743321,-500.0,9.997e-05,2]
[348952049,1736889743342,-500.0,9.997e-05,2]
[348952050,1736889743366,-1554.09,9.997e-05,2]
[348952051,1736889743389,-500.0,9.997e-05,2]
[348952052,1736889743412,-926.72,9.997e-05,2]
[348952053,1736889743435,-500.0,9.997e-05,2]
[348952054,1736889743457,-500.0,9.997e-05,2]
[348952055,1736889743481,-1262.57,9.997e-05,2]
[348952056,1736889743503,-1262.57,9.997e-05,2]
[348952057,1736889743527,-500.0,9.997e-05,2]
[348952058,1736889743551,-500.0,9.997e-05,2]
[348952059,1736889743576,-431.62,9.997e-05,2]
[348952060,1736889743600,-500.0,9.997e-05,2]
[348952061,1736889743623,-500.0,9.997e-05,2]
[348952062,1736889743645,-500.0,9.997e-05,2]
[348952063,1736889743668,-500.0,9.997e-05,2]
[348952064,1736889743690,-500.0,9.997e-05,2]
[348952065,1736889743713,-500.0,9.997e-05,2]
[348952066,1736889743736,-500.0,9.997e-05,2]
[348952067,1736889743760,-535.81,9.997e-05,2]
[348952068,1736889743788,-702.04,9.997e-05,2]
[348952069,1736889743811,-500.0,9.997e-05,2]
[348952070,1736889744021,-155.9150043,9.997e-05,2]
[348952071,1736889744045,-500.0,9.997e-05,2]
[348952072,1736889744068,-500.0,9.997e-05,2]
[348952073,1736889744089,-500.0,9.997e-05,2]
[348952074,1736889744113,-500.0,9.997e-05,2]
[348952075,1736889744135,-500.0,9.997e-05,2]
[348952076,1736889744158,-500.0,9.997e-05,2]
[348952077,1736889744180,-500.0,9.997e-05,2]
[348952078,1736889744202,-500.0,9.997e-05,2]
[348952079,1736889744225,-500.0,9.997e-05,2]
[348952080,1736889744248,-500.0,9.997e-05,2]
[348952081,1736889744272,-500.0,9.997e-05,2]
[348952082,1736889744295,-500.0,9.997e-05,2]
[348952083,1736889744317,-500.0,9.997e-05,2]
[348952084,1736889744340,-574.56,9.997e-05,2]
[348952085,1736889744364,-500.0,9.997e-05,2]
[348952086,1736889744385,-286.52035278,9.997e-05,2]
[348952087,1736889744408,-500.0,9.997e-05,2]
[348952088,1736889744431,-500.0,9.997e-05,2]
[348952089,1736889744456,-500.0,9.997e-05,2]
[348952090,1736889744479,-500.0,9.997e-05,2]
[348952091,1736889744502,-500.0,9.997e-05,2]
[348952092,1736889744525,-500.0,9.997e-05,2]
[348952093,1736889744550,-500.0,9.997e-05,2]
[348952094,1736889744574,-500.0,9.997e-05,2]
[348952095,1736889744598,-513.39091904,9.997e-05,2]
[348952096,1736889744624,-1081.36,9.997e-05,2]
[348952097,1736889744647,-500.0,9.997e-05,2]
[348952098,1736889744672,-500.0,9.997e-05,2]
[348952099,1736889744695,-377.54356041,9.997e-05,2]
[348952100,1736889744720,-500.0,9.997e-05,2]
[348952101,1736889744745,-500.0,9.997e-05,2]
[348952102,1736889744771,-500.0,9.997e-05,2]
[348952103,1736889744798,-500.0,9.997e-05,2]
[348952104,1736889744821,-500.0,9.997e-05,2]
[348952105,1736889744847,-2039.54,9.997e-05,2]
[348952106,1736889744870,-500.0,9.997e-05,2]
[348952107,1736889744894,-500.0,9.997e-05,2]
[348952108,1736889744915,-500.0,9.997e-05,2]
[348952109,1736889744938,-500.0,9.997e-05,2]
[348952110,1736889744961,-500.0,9.997e-05,2]
[348952111,1736889744983,-500.0,9.997e-05,2]
[348952112,1736889745006,-500.0,9.997e-05,2]
[348952113,1736889745030,-500.0,9.997e-05,2]
[348952114,1736889745055,-500.0,9.997e-05,2]
[348952115,1736889745079,-547.52,9.997e-05,2]
[348952116,1736889745102,-626.45,9.997e-05,2]
[348952117,1736889745125,-500.0,9.997e-05,2]
[348952118,1736889745148,-557.49,9.997e-05,2]
[348952119,1736889745171,-500.0,9.997e-05,2]
[348952120,1736889745194,-500.0,9.997e-05,2]
[348952121,1736889745218,-660.42,9.997e-05,2]
[348952122,1736889745240,-500.0,9.997e-05,2]
[348952123,1736889745263,-500.0,9.997e-05,2]
[348952124,1736889745287,-500.0,9.997e-05,2]
[348952125,1736889745310,-500.0,9.997e-05,2]
[348952126,1736889745332,-500.0,9.997e-05,2]
[348952127,1736889745355,-500.0,9.997e-05,2]
[348952128,1736889745378,-500.0,9.997e-05,2]
[348952129,1736889745400,-500.0,9.997e-05,2]
[348952130,1736889745423,-500.0,9.997e-05,2]
[348952131,1736889745445,-500.0,9.997e-05,2]
[348952132,1736889745468,-500.0,9.997e-05,2]
[348952133,1736889745491,-500.0,9.997e-05,2]
[348952134,1736889745513,-164.40495557,9.997e-05,2]
[348952135,1736889745539,-563.27545707,9.997e-05,2]
[348952136,1736889745563,-557.63,9.997e-05,2]
[348952137,1736889745585,-603.59,9.997e-05,2]
[348952138,1736889745608,-500.0,9.997e-05,2]
[348952139,1736889745630,-500.0,9.997e-05,2]
[348952140,1736889745653,-500.0,9.997e-05,2]
[348952141,1736889745675,-500.0,9.997e-05,2]
[348952142,1736889745698,-500.0,9.997e-05,2]
[348952143,1736889745721,-545.53,9.997e-05,2]
[348952144,1736889745744,-500.0,9.997e-05,2]
[348952145,1736889745766,-500.0,9.997e-05,2]
[348952146,1736889745793,-500.0,9.997e-05,2]
[348952147,1736889745817,-500.0,9.997e-05,2]
[348952148,1736889745841,-500.0,9.997e-05,2]
[348952149,1736889745864,-520.71,9.997e-05,2]
[348952150,1736889745885,-642.82,9.997e-05,2]
[348952151,1736889745907,-500.0,9.997e-05,2]
[348952152,1736889745930,-500.0,9.997e-05,2]
[348952153,1736889745954,-500.0,9.997e-05,2]
[348952154,1736889745977,-1489.7,9.997e-05,2]
[348952155,1736889746001,-500.0,9.997e-05,2]
[348952156,1736889746025,-571.31,9.997e-05,2]
[348952157,1736889746059,-499.77,9.997e-05,2]
[348952158,1736889746087,-500.0,9.997e-05,2]
[348952159,1736889746111,-552.23,9.997e-05,2]
[348952160,1736889746136,-500.0,9.997e-05,2]
[348952161,1736889746160,-500.0,9.997e-05,2]
[348952162,1736889746183,-500.0,9.997e-05,2]
[348952163,1736889746206,-1144.01,9.997e-05,2]
[348952164,1736889746231,-561.42,9.997e-05,2]
[348952165,1736889746254,-500.0,9.997e-05,2]
[348952166,1736889746279,-614.97,9.997e-05,2]
[348952167,1736889746304,-3291.22,9.997e-05,2]
[348952168,1736889746327,-500.0,9.997e-05,2]
[348952169,1736889746351,-772.49,9.997e-05,2]
[348952170,1736889746375,-500.0,9.997e-05,2]
[348952171,1736889746398,-601.65,9.997e-05,2]
[348952172,1736889746423,-438.46308912,9.997e-05,2]
[348952173,1736889746448,-500.0,9.997e-05,2]
[348952174,1736889746474,-500.0,9.997e-05,2]
[348952175,1736889746497,-500.0,9.997e-05,2]
[348952176,1736889746523,-500.0,9.997e-05,2]
[348952177,1736889746548,-500.0,9.997e-05,2]
[348952178,1736889746573,-500.0,9.997e-05,2]
[348952179,1736889746598,-500.0,9.997e-05,2]
[348952180,1736889746622,-500.0,9.997e-05,2]
[348952181,1736889746650,-500.0,9.997e-05,2]
[348952182,1736889746674,-573.92,9.997e-05,2]
[348952183,1736889746699,-638.47,9.997e-05,2]
[348952184,1736889746724,-587.37,9.997e-05,2]
[348952185,1736889746749,-500.0,9.997e-05,2]
[348952186,1736889746774,-889.6,9.997e-05,2]
[348952187,1736889746800,-500.0,9.997e-05,2]
[348952188,1736889746824,-500.0,9.997e-05,2]
[348952189,1736889746848,-500.0,9.997e-05,2]
[348952190,1736889746874,-500.0,9.997e-05,2]
[348952191,1736889746897,-500.0,9.997e-05,2]
[348952192,1736889746921,-500.0,9.997e-05,2]
[348952193,1736889746947,-500.0,9.997e-05,2]
[348952194,1736889746972,-1045.55,9.997e-05,2]